[Event "3rd FIDE WCCC Rapid G12 2019"]
[Site "Minsk"]
[Date "2019.08.17"]
[Round "9.5"]
[White "Vu, My Linh"]
[Black "Shevtsova, Darya"]
[Result "0-1"]
[ECO "D18"]
[WhiteElo "1467"]
[BlackElo "1588"]
[Annotator "NA RC"]
[PlyCount "202"]
[EventDate "2019.08.16"]
[EventType "swiss"]
[EventCountry "BLR"]
[SourceTitle "playchess.com"]
[Source "ChessBase"]
[SourceQuality "1"]
[TimeControl "600+5"]

1. d4 {[%emt 0:00:00]} d5 {[%emt 0:00:00]} 2. c4 {[%emt 0:00:00]} c6 {[%emt 0:00:00]} 3. Nf3 {[%emt 0:00:00]} Nf6 {[%emt 0:00:00]} 4. Nc3 {[%emt 0:00:00]} dxc4 {[%emt 0:00:02]} 5. a4 {[%emt 0:00:11]} Bf5 {[%emt 0:00:03]} 6. e3 {[%emt 0:00:02]} e6 {[%emt 0:00:11]} 7. Bxc4 {[%emt 0:00:03]} Bb4 {[%emt 0:00:08]} 8. O-O {[%emt 0:00:04]} O-O {[%emt 0:00:06]} 9. h3 {[%emt 0:00:30]} Nbd7 {[%emt 0:00:04]} 10. Nh4 {[%emt 0:00:03]} Bg6 {[%emt 0:00:56]} 11. Nxg6 {[%emt 0:00:05]} hxg6 {[%emt 0:00:02]} 12. Qb3 {[%emt 0:00:12]} Qb6 {[%emt 0:00:27]} 13. Na2 {[%emt 0:01:05]} Bd6 {[%emt 0:00:11]} 14. Qc2 {[%emt 0:00:09]} Rac8 {[%emt 0:00:26]} 15. Nc3 {[%emt 0:00:22]} Qa5 {[%emt 0:00:35]} 16. Bd2 {[%emt 0:00:12]} Qh5 {[%emt 0:00:30]} 17. Be2 {[%emt 0:00:27]} Qh4 {[%emt 0:00:13]} 18. Bf3 {[%emt 0:00:57]} g5 {[%emt 0:00:41]} 19. Ne4 {[%emt 0:01:39]} Bc7 {[%emt 0:01:04]} 20. Rfd1 {[%emt 0:00:32]} g4 {[%emt 0:00:25]} 21. hxg4 {[%emt 0:00:37]} Nxg4 {[%emt 0:01:23]} 22. Bxg4 {[%emt 0:00:03]} Qxg4 {[%emt 0:00:02]} 23. Qd3 {[%emt 0:00:59]} Qh4 {[%emt 0:00:29]} 24. g3 {[%emt 0:00:44]} Qg4 {[%emt 0:00:32]} 25. Bb4 {[%emt 0:00:12]} Rfd8 {[%emt 0:00:21]} 26. Bd6 {[%emt 0:00:10]} f5 {[%emt 0:00:21]} 27. Nc5 {[%emt 0:00:40]} Bxd6 {[%emt 0:00:12]} 28. Nxb7 {[%emt 0:00:02]} Bxg3 {[%emt 0:00:35]} 29. Nxd8 {[%emt 0:00:42]} Bh4+ {[%emt 0:00:21]} 30. Kf1 {[%emt 0:00:08]} Rxd8 {[%emt 0:00:06]} 31. Qc4 {[%emt 0:00:06]} Kf7 {[%emt 0:00:24]} 32. Qxc6 {[%emt 0:00:04]} Nf6 {[%emt 0:00:14]} 33. Rac1 {[%emt 0:00:19]} f4 {[%emt 0:00:19]} 34. Qc7+ {[%emt 0:00:21]} Rd7 {[%emt 0:00:06]} 35. Qxf4 {[%emt 0:00:07]} Qxf4 {[%emt 0:00:12]} 36. exf4 {[%emt 0:00:01]} Nd5 {[%emt 0:00:04]} 37. Kg2 {[%emt 0:00:12]} Nxf4+ {[%emt 0:00:07]} 38. Kf3 {[%emt 0:00:01]} Bg5 {[%emt 0:00:05]} 39. Rc6 {[%emt 0:00:12]} Nd5 {[%emt 0:00:23]} 40. Rc5 {[%emt 0:00:13]} Bf6 {[%emt 0:00:11]} 41. Ke4 {[%emt 0:00:10]} Nb6 {[%emt 0:00:25]} 42. a5 {[%emt 0:00:06]} Nd5 {[%emt 0:00:05]} 43. Rd3 {[%emt 0:00:16]} Nb4 {[%emt 0:00:04]} 44. Rd1 {[%emt 0:00:07]} Na6 {[%emt 0:00:07]} 45. Rc6 {[%emt 0:00:05]} Nb4 {[%emt 0:00:04]} 46. Rc4 {[%emt 0:00:03]} Nd5 {[%emt 0:00:02]} 47. b4 {[%emt 0:00:01]} Be7 {[%emt 0:00:07]} 48. b5 {[%emt 0:00:02]} Bb4 {[%emt 0:00:06]} 49. Ra1 {[%emt 0:00:17]} Bc3 {[%emt 0:00:06]} 50. Ra3 {[%emt 0:00:04]} Bb4 {[%emt 0:00:08]} 51. Ra1 {[%emt 0:00:04]} Bd6 {[%emt 0:00:08]} 52. Rb1 {[%emt 0:00:04]} Rb7 {[%emt 0:00:05]} 53. Rc6 {[%emt 0:00:13]} Ke7 {[%emt 0:00:05]} 54. b6 {[%emt 0:00:06]} axb6 {[%emt 0:00:02]} 55. axb6 {[%emt 0:00:01]} Kd7 {[%emt 0:00:02]} 56. Rc2 {[%emt 0:00:15]} Rxb6 {[%emt 0:00:06]} 57. Rxb6 {[%emt 0:00:01]} Nxb6 {[%emt 0:00:01]} 58. f4 {[%emt 0:00:02]} Nd5 {[%emt 0:00:05]} 59. Rg2 {[%emt 0:00:02]} Nxf4 {[%emt 0:00:15]} 60. Rxg7+ {[%emt 0:00:02]} Kc6 {[%emt 0:00:02]} 61. Ra7 {[%emt 0:00:05]} Nd5 {[%emt 0:00:02]} 62. Ra6+ {[%emt 0:00:02]} Kd7 {[%emt 0:00:01]} 63. Ra7+ {[%emt 0:00:01]} Nc7 {[%emt 0:00:03]} 64. Kd3 {[%emt 0:00:07]} Kc6 {[%emt 0:00:02]} 65. Kc4 {[%emt 0:00:01]} Bf4 {[%emt 0:00:07]} 66. Ra1 {[%emt 0:00:07]} Kd6 {[%emt 0:00:02]} 67. Rf1 {[%emt 0:00:03]} Bg3 {[%emt 0:00:03]} 68. Rf3 {[%emt 0:00:01]} Bh2 {[%emt 0:00:03]} 69. Rh3 {[%emt 0:00:02]} Bg1 {[%emt 0:00:02]} 70. Rh6 {[%emt 0:00:04]} Nd5 {[%emt 0:00:04]} 71. Rh8 {[%emt 0:00:06]} Ne3+ {[%emt 0:00:04]} 72. Kd3 {[%emt 0:00:10]} Nf5 {[%emt 0:00:02]} 73. Rd8+ {[%emt 0:00:03]} Ke7 {[%emt 0:00:01]} 74. Rg8 {[%emt 0:00:13]} Bxd4 {[%emt 0:00:03]} 75. Rg5 {[%emt 0:00:02]} Bf6 {[%emt 0:00:02]} 76. Rg2 {[%emt 0:00:01]} Kd6 {[%emt 0:00:04]} 77. Ke4 {[%emt 0:00:02]} Nd4 {[%emt 0:00:12]} 78. Rd2 {[%emt 0:00:07]} e5 {[%emt 0:00:02]} 79. Rf2 {[%emt 0:00:03]} Bg5 {[%emt 0:00:06]} 80. Rg2 {[%emt 0:00:03]} Bf4 {[%emt 0:00:02]} 81. Rg4 {[%emt 0:00:05]} Ne6 {[%emt 0:00:05]} 82. Rg6 {[%emt 0:00:04]} Ke7 {[%emt 0:00:08]} 83. Kf5 {[%emt 0:00:09]} Nd4+ {[%emt 0:00:04]} 84. Ke4 {[%emt 0:00:01]} Kf7 {[%emt 0:00:07]} 85. Rg4 {[%emt 0:00:02]} Ne6 {[%emt 0:00:03]} 86. Kf5 {[%emt 0:00:09]} Ke7 {[%emt 0:00:12]} 87. Rg6 {[%emt 0:00:06]} Nd4+ {[%emt 0:00:03]} 88. Ke4 {[%emt 0:00:01]} Kf7 {[%emt 0:00:05]} 89. Rg4 {[%emt 0:00:03]} Bh2 {[%emt 0:00:12]} 90. Rh4 {[%emt 0:00:09]} Bg3 {[%emt 0:00:04]} 91. Rh3 {[%emt 0:00:10]} Bf4 {[%emt 0:00:05]} 92. Rh1 {[%emt 0:00:07]} Ke6 {[%emt 0:00:05]} 93. Rf1 {[%emt 0:00:04]} Ne2 {[%emt 0:00:07]} 94. Rf2 {[%emt 0:00:04]} Ng3+ {[%emt 0:00:08]} 95. Kf3 {[%emt 0:00:11]} Kf5 {[%emt 0:00:03]} 96. Rg2 {[%emt 0:00:23]} e4+ {[%emt 0:00:04]} 97. Kf2 {[%emt 0:00:00]} e3+ {[%emt 0:00:14]} 98. Kf3 {[%emt 0:00:05]} Ne4 {[%emt 0:00:06]} 99. Re2 {[%emt 0:00:18]} Nd2+ {[%emt 0:00:12]} 100. Kg2 {[%emt 0:00:12]} Ke4 {[%emt 0:00:05]} 101. Kg1 Nf3+ 0-1

[Event "3rd FIDE WCCC Rapid G12 2019"]
[Site "Minsk"]
[Date "2019.08.17"]
[Round "9.6"]
[White "Kirdyashkina, Ekaterina"]
[Black "Nguyen, Le Cam Hien"]
[Result "1-0"]
[ECO "B50"]
[WhiteElo "1691"]
[BlackElo "1579"]
[Annotator "NA"]
[PlyCount "49"]
[EventDate "2019.08.16"]
[EventType "swiss"]
[EventCountry "BLR"]
[SourceTitle "playchess.com"]
[Source "ChessBase"]
[SourceQuality "1"]
[TimeControl "600+5"]

1. e4 {[%emt 0:00:00]} c5 {[%emt 0:00:00]} 2. Nf3 {[%emt 0:00:00]} d6 {[%emt 0:00:00]} 3. c3 {[%emt 0:00:00]} Nf6 {[%emt 0:00:01]} 4. Be2 {[%emt 0:00:00]} Bd7 {[%emt 0:00:09]} 5. Qc2 {[%emt 0:00:10]} Nc6 {[%emt 0:00:05]} 6. O-O {[%emt 0:00:03]} g6 {[%emt 0:00:04]} 7. Re1 {[%emt 0:00:02]} Bg7 {[%emt 0:00:02]} 8. Bf1 {[%emt 0:00:01]} O-O {[%emt 0:00:03]} 9. Qb3 {[%emt 0:00:07]} Qb6 {[%emt 0:00:09]} 10. Qxb6 {[%emt 0:00:17]} axb6 {[%emt 0:00:02]} 11. Na3 {[%emt 0:00:15]} e6 {[%emt 0:00:08]} 12. Nc4 {[%emt 0:00:03]} Ne8 {[%emt 0:00:40]} 13. Nxb6 {[%emt 0:00:02]} Rd8 {[%emt 0:00:01]} 14. Nxd7 Rxd7 {[%emt 0:00:01]} 15. d3 {[%emt 0:00:14]} Nc7 {[%emt 0:00:08]} 16. Bf4 {[%emt 0:00:05]} b5 {[%emt 0:00:18]} 17. a3 {[%emt 0:00:34]} Ra8 {[%emt 0:00:21]} 18. Rac1 {[%emt 0:00:57]} Ra4 {[%emt 0:00:49]} 19. Red1 {[%emt 0:00:49]} b4 {[%emt 0:01:06]} 20. axb4 {[%emt 0:00:05]} cxb4 {[%emt 0:00:06]} 21. cxb4 Nxb4 22. d4 {[%emt 0:00:26]} Ra2 {[%emt 0:00:50]} 23. Bb5 {[%emt 0:00:12]} Nxb5 {[%emt 0:00:04]} 24. Rc8+ {[%emt 0:00:01]} Bf8 {[%emt 0:00:03]} 25. Bh6 {[%emt 0:00:01]} 1-0